[Event "Early-Titled-Tuesday-Blitz-September-12-2023"]
[Site "Chess.com"]
[Date "2023.09.12"]
[Round "1"]
[White "play1ngtheangel"]
[Black "esrosenberg"]
[Result "1-0"]
[WhiteElo "2668"]
[BlackElo "2372"]
[TimeControl "180+1"]
[EndTime "8:06:25 PDT"]
[Termination "play1ngtheangel won by checkmate"]

1. e4 {[%clk 0:03:00.9]} 1... c5 {[%clk 0:02:58.2]} 2. Nf3 {[%clk 0:02:56.8]}
2... g6 {[%clk 0:02:58.1]} 3. c3 {[%clk 0:02:55.9]} 3... d5 {[%clk 0:02:57.4]}
4. exd5 {[%clk 0:02:56]} 4... Qxd5 {[%clk 0:02:58.1]} 5. d4 {[%clk 0:02:56.9]}
5... Bg7 {[%clk 0:02:58.2]} 6. Be3 {[%clk 0:02:56.6]} 6... cxd4 {[%clk
0:02:52.9]} 7. cxd4 {[%clk 0:02:55.5]} 7... Nh6 {[%clk 0:02:52.1]} 8. Nc3 {[%clk
0:02:55.6]} 8... Qa5 {[%clk 0:02:51.8]} 9. Bb5+ {[%clk 0:02:55.2]} 9... Nc6
{[%clk 0:02:51.5]} 10. O-O {[%clk 0:02:53.4]} 10... O-O {[%clk 0:02:51.2]} 11.
Bxh6 {[%clk 0:02:41.3]} 11... Bxh6 {[%clk 0:02:51.1]} 12. d5 {[%clk 0:02:41.8]}
12... Nb4 {[%clk 0:02:37.4]} 13. Qe2 {[%clk 0:02:37.1]} 13... e6 {[%clk
0:02:29.3]} 14. a3 {[%clk 0:02:37.1]} 14... Na6 {[%clk 0:02:28.4]} 15. Bxa6
{[%clk 0:02:37.1]} 15... Qxa6 {[%clk 0:02:23.3]} 16. Qxa6 {[%clk 0:02:37.1]}
16... bxa6 {[%clk 0:02:24.1]} 17. d6 {[%clk 0:02:37.4]} 17... Rd8 {[%clk
0:02:23]} 18. Rad1 {[%clk 0:02:36.5]} 18... Rb8 {[%clk 0:02:18.3]} 19. Na4
{[%clk 0:02:33.5]} 19... Bd7 {[%clk 0:02:12.5]} 20. Nc5 {[%clk 0:02:33.6]} 20...
Rxb2 {[%clk 0:02:11.7]} 21. Ne5 {[%clk 0:02:33.9]} 21... Bb5 {[%clk 0:02:07.9]}
22. Rfe1 {[%clk 0:02:34.1]} 22... Rd2 {[%clk 0:02:02.3]} 23. Ne4 {[%clk
0:02:30.8]} 23... Rxd1 {[%clk 0:01:52.3]} 24. Rxd1 {[%clk 0:02:31.5]} 24... f5
{[%clk 0:01:50.1]} 25. Nc5 {[%clk 0:02:28.5]} 25... Bf8 {[%clk 0:01:45]} 26. Nb7
{[%clk 0:02:20.7]} 26... Rc8 {[%clk 0:01:23.4]} 27. d7 {[%clk 0:02:20.6]} 27...
Bxd7 {[%clk 0:01:23.9]} 28. Nxd7 {[%clk 0:02:21.5]} 28... Bxa3 {[%clk
0:01:20.1]} 29. h3 {[%clk 0:02:17.2]} 29... Rc7 {[%clk 0:01:18.5]} 30. Nd8
{[%clk 0:02:17.1]} 30... Rc1 {[%clk 0:01:12.7]} 31. Rxc1 {[%clk 0:02:14]} 31...
Bxc1 {[%clk 0:01:13.6]} 32. Nc6 {[%clk 0:02:07.3]} 32... Kf7 {[%clk 0:01:09.3]}
33. Nde5+ {[%clk 0:02:05.4]} 33... Kf6 {[%clk 0:01:07.1]} 34. Nc4 {[%clk
0:02:05.7]} 34... Bh6 {[%clk 0:00:58.5]} 35. Nxa7 {[%clk 0:02:05.1]} 35... Bf8
{[%clk 0:00:58.1]} 36. Nc6 {[%clk 0:02:01.3]} 36... Bc5 {[%clk 0:00:56.1]} 37.
Nb8 {[%clk 0:02:01.6]} 37... e5 {[%clk 0:00:54]} 38. Nxa6 {[%clk 0:02:02.1]}
38... Ba7 {[%clk 0:00:53.5]} 39. Nc7 {[%clk 0:02:02.1]} 39... e4 {[%clk
0:00:52.8]} 40. Kf1 {[%clk 0:02:01.5]} 40... g5 {[%clk 0:00:51.1]} 41. Ke2
{[%clk 0:02:01]} 41... h5 {[%clk 0:00:51]} 42. Ne8+ {[%clk 0:01:58.8]} 42... Kg6
{[%clk 0:00:47.6]} 43. Ne5+ {[%clk 0:01:58.3]} 43... Kh6 {[%clk 0:00:45.7]} 44.
Nd6 {[%clk 0:01:56.4]} 44... Bb8 {[%clk 0:00:43.5]} 45. Nxf5+ {[%clk 0:01:51.3]}
45... Kh7 {[%clk 0:00:42.8]} 46. Nc6 {[%clk 0:01:50.8]} 46... Bf4 {[%clk
0:00:41.9]} 47. Ng3 {[%clk 0:01:49.7]} 47... Kg6 {[%clk 0:00:41.2]} 48. Nxe4
{[%clk 0:01:49.8]} 48... Kf5 {[%clk 0:00:41.2]} 49. f3 {[%clk 0:01:46.2]} 49...
g4 {[%clk 0:00:40.7]} 50. hxg4+ {[%clk 0:01:45.6]} 50... hxg4 {[%clk 0:00:41.3]}
51. Ne7+ {[%clk 0:01:45]} 51... Ke5 {[%clk 0:00:41.1]} 52. Ng6+ {[%clk
0:01:42.5]} 52... Kf5 {[%clk 0:00:40.2]} 53. Nxf4 {[%clk 0:01:43.4]} 53... Kxf4
{[%clk 0:00:40.7]} 54. g3+ {[%clk 0:01:42.4]} 54... Kf5 {[%clk 0:00:40.6]} 55.
Ke3 {[%clk 0:01:42]} 55... gxf3 {[%clk 0:00:40.4]} 56. Kxf3 {[%clk 0:01:42.9]}
56... Ke5 {[%clk 0:00:40.4]} 57. Nf2 {[%clk 0:01:43.8]} 57... Kf5 {[%clk
0:00:40.7]} 58. g4+ {[%clk 0:01:44.5]} 58... Kg5 {[%clk 0:00:41.1]} 59. Kg3
{[%clk 0:01:45.2]} 59... Kg6 {[%clk 0:00:41.2]} 60. Nh3 {[%clk 0:01:46.1]} 60...
Kh6 {[%clk 0:00:41.5]} 61. Kh4 {[%clk 0:01:47]} 61... Kg6 {[%clk 0:00:41.7]} 62.
g5 {[%clk 0:01:47.9]} 62... Kh7 {[%clk 0:00:41.2]} 63. Kh5 {[%clk 0:01:47.2]}
63... Kg7 {[%clk 0:00:41.5]} 64. g6 {[%clk 0:01:48.1]} 64... Kh8 {[%clk
0:00:41.4]} 65. Kh6 {[%clk 0:01:48.1]} 65... Kg8 {[%clk 0:00:41.9]} 66. g7
{[%clk 0:01:48.8]} 66... Kf7 {[%clk 0:00:41.9]} 67. Kh7 {[%clk 0:01:49.3]} 67...
Kf6 {[%clk 0:00:42.1]} 68. g8=Q {[%clk 0:01:50]} 68... Kf5 {[%clk 0:00:42.5]}
69. Qg5+ {[%clk 0:01:50.5]} 69... Ke6 {[%clk 0:00:42.9]} 70. Nf4+ {[%clk
0:01:50.1]} 70... Kf7 {[%clk 0:00:42.8]} 71. Qg6+ {[%clk 0:01:49.5]} 71... Kf8
{[%clk 0:00:43.2]} 72. Qg7+ {[%clk 0:01:48.6]} 72... Ke8 {[%clk 0:00:43.5]} 73.
Ng6 {[%clk 0:01:49.3]} 73... Kd8 {[%clk 0:00:43.7]} 74. Qb7 {[%clk 0:01:50]}
74... Ke8 {[%clk 0:00:43.8]} 75. Qe7# {[%clk 0:01:50.7]} 1-0

[Event "Early-Titled-Tuesday-Blitz-September-12-2023"]
[Site "Chess.com"]
[Date "2023.09.12"]
[Round "1"]
[White "nihalsarin"]
[Black "CrushingKings"]
[Result "0-1"]
[WhiteElo "3107"]
[BlackElo "2551"]
[TimeControl "180+1"]
[EndTime "8:06:30 PDT"]
[Termination "CrushingKings won by checkmate"]

1. e4 {[%clk 0:03:00.9]} 1... g6 {[%clk 0:02:59.7]} 2. h4 {[%clk 0:02:59.8]}
2... Bg7 {[%clk 0:03:00.6]} 3. h5 {[%clk 0:02:58.2]} 3... c5 {[%clk 0:03:01.2]}
4. Nc3 {[%clk 0:02:55.8]} 4... Nc6 {[%clk 0:03:01.7]} 5. Bc4 {[%clk 0:02:55.4]}
5... e6 {[%clk 0:03:02.3]} 6. d3 {[%clk 0:02:55.8]} 6... Nge7 {[%clk 0:03:02.6]}
7. h6 {[%clk 0:02:56.4]} 7... Bf6 {[%clk 0:03:02.9]} 8. Nf3 {[%clk 0:02:57]}
8... d5 {[%clk 0:03:01.2]} 9. Bb5 {[%clk 0:02:55.9]} 9... O-O {[%clk 0:03:00.9]}
10. Bxc6 {[%clk 0:02:28.9]} 10... Nxc6 {[%clk 0:02:59.5]} 11. O-O {[%clk
0:02:28.9]} 11... Nd4 {[%clk 0:02:59.4]} 12. Nxd4 {[%clk 0:02:24.9]} 12... cxd4
{[%clk 0:02:59.3]} 13. Ne2 {[%clk 0:02:25.1]} 13... dxe4 {[%clk 0:02:58.7]} 14.
dxe4 {[%clk 0:02:26]} 14... e5 {[%clk 0:02:58.8]} 15. Qd3 {[%clk 0:02:21.2]}
15... Be6 {[%clk 0:02:34.1]} 16. f4 {[%clk 0:02:16.6]} 16... Rc8 {[%clk
0:02:34]} 17. b3 {[%clk 0:02:09.6]} 17... Bg4 {[%clk 0:02:30.2]} 18. Ba3 {[%clk
0:01:56.9]} 18... Re8 {[%clk 0:02:00.3]} 19. Rae1 {[%clk 0:01:48.9]} 19... Rxc2
{[%clk 0:01:52]} 20. fxe5 {[%clk 0:01:30.8]} 20... Bxe2 {[%clk 0:00:43.1]} 21.
Qxc2 {[%clk 0:01:26.9]} 21... d3 {[%clk 0:00:35.5]} 22. Qc4 {[%clk 0:01:22.2]}
22... Bxe5 {[%clk 0:00:20.3]} 23. Qxf7+ {[%clk 0:01:21.4]} 23... Kh8 {[%clk
0:00:20.8]} 24. Bf8 {[%clk 0:01:10]} 24... Bd4+ {[%clk 0:00:19.2]} 25. Rf2
{[%clk 0:01:02.5]} 25... Rxf8 {[%clk 0:00:18.6]} 26. Qxb7 {[%clk 0:00:22.5]}
26... Bxf2+ {[%clk 0:00:17.6]} 27. Kh2 {[%clk 0:00:23.2]} 27... Qh4# {[%clk
0:00:18]} 0-1

[Event "Early-Titled-Tuesday-Blitz-September-12-2023"]
[Site "Chess.com"]
[Date "2023.09.12"]
[Round "1"]
[White "Inepton_Fermion"]
[Black "DefiantChair"]
[Result "0-1"]
[WhiteElo "2383"]
[BlackElo "2684"]
[TimeControl "180+1"]
[EndTime "8:06:31 PDT"]
[Termination "DefiantChair won on time"]

1. Nf3 {[%clk 0:02:36.4]} 1... d5 {[%clk 0:02:54.3]} 2. b3 {[%clk 0:02:36.6]}
2... Nf6 {[%clk 0:02:52.5]} 3. Bb2 {[%clk 0:02:37]} 3... e6 {[%clk 0:02:50.8]}
4. e3 {[%clk 0:02:37]} 4... c5 {[%clk 0:02:51.3]} 5. c4 {[%clk 0:02:36.9]} 5...
Nc6 {[%clk 0:02:50]} 6. cxd5 {[%clk 0:02:30.3]} 6... exd5 {[%clk 0:02:50.9]} 7.
Bb5 {[%clk 0:02:30.8]} 7... Bd6 {[%clk 0:02:49.4]} 8. O-O {[%clk 0:02:29.9]}
8... O-O {[%clk 0:02:46.7]} 9. d4 {[%clk 0:02:29.6]} 9... cxd4 {[%clk
0:02:31.9]} 10. Nxd4 {[%clk 0:02:30.5]} 10... Ne5 {[%clk 0:01:56.5]} 11. Nd2
{[%clk 0:02:13.5]} 11... Bg4 {[%clk 0:01:54]} 12. Be2 {[%clk 0:02:12.8]} 12...
Bd7 {[%clk 0:01:54.1]} 13. N2f3 {[%clk 0:02:03.1]} 13... Re8 {[%clk 0:01:48.6]}
14. Nxe5 {[%clk 0:01:59.4]} 14... Bxe5 {[%clk 0:01:49.5]} 15. Bf3 {[%clk
0:01:59.2]} 15... Ne4 {[%clk 0:01:49.1]} 16. Rc1 {[%clk 0:00:59.7]} 16... Qf6
{[%clk 0:01:47.3]} 17. h3 {[%clk 0:00:53.8]} 17... Rad8 {[%clk 0:01:40.8]} 18.
Qe2 {[%clk 0:00:49.4]} 18... a6 {[%clk 0:01:40]} 19. Ba1 {[%clk 0:00:46.7]}
19... Qg6 {[%clk 0:01:40.2]} 20. Kh1 {[%clk 0:00:46.6]} 20... Bxd4 {[%clk
0:01:38.8]} 21. Bxd4 {[%clk 0:00:45.4]} 21... Bb5 {[%clk 0:01:38.9]} 22. Qe1
{[%clk 0:00:35.7]} 22... Bxf1 {[%clk 0:01:38.7]} 23. Qxf1 {[%clk 0:00:36.6]}
23... Nd2 {[%clk 0:01:39.1]} 24. Qe2 {[%clk 0:00:35.7]} 24... Nxf3 {[%clk
0:01:40]} 25. Qxf3 {[%clk 0:00:36.6]} 25... Qe4 {[%clk 0:01:39.8]} 26. Qg3
{[%clk 0:00:30.2]} 26... Qg6 {[%clk 0:01:32]} 27. Qc7 {[%clk 0:00:20.6]} 27...
b5 {[%clk 0:01:30.9]} 28. Qa7 {[%clk 0:00:14.9]} 28... Rc8 {[%clk 0:01:22.7]}
29. Rc7 {[%clk 0:00:08]} 29... Rxc7 {[%clk 0:01:21.5]} 30. Qxc7 {[%clk
0:00:08.9]} 30... Qb1+ {[%clk 0:01:21.5]} 31. Kh2 {[%clk 0:00:09.5]} 31... h6
{[%clk 0:01:12.7]} 32. Qc6 {[%clk 0:00:04]} 32... Re6 {[%clk 0:01:09.7]} 33.
Qxd5 {[%clk 0:00:03.2]} 33... Qxa2 {[%clk 0:01:07.1]} 34. Qd8+ {[%clk
0:00:01.2]} 34... Kh7 {[%clk 0:01:06.8]} 35. b4 {[%clk 0:00:01.5]} 35... Qxf2
{[%clk 0:01:03.6]} 0-1

[Event "Early-Titled-Tuesday-Blitz-September-12-2023"]
[Site "Chess.com"]
[Date "2023.09.12"]
[Round "1"]
[White "Murad_Ibrahimli"]
[Black "Irishchessman16"]
[Result "1-0"]
[WhiteElo "2905"]
[BlackElo "2498"]
[TimeControl "180+1"]
[EndTime "8:06:32 PDT"]
[Termination "Murad_Ibrahimli won on time"]

1. e4 {[%clk 0:03:00]} 1... c5 {[%clk 0:02:57.7]} 2. f3 {[%clk 0:02:59.8]} 2...
Nc6 {[%clk 0:02:54]} 3. Bb5 {[%clk 0:02:57.1]} 3... e6 {[%clk 0:02:47.6]} 4.
Bxc6 {[%clk 0:02:56.5]} 4... bxc6 {[%clk 0:02:46.9]} 5. Ne2 {[%clk 0:02:57.1]}
5... d5 {[%clk 0:02:37.7]} 6. O-O {[%clk 0:02:56.4]} 6... Bd6 {[%clk 0:02:35.6]}
7. d3 {[%clk 0:02:55.4]} 7... Ne7 {[%clk 0:02:34.3]} 8. Bf4 {[%clk 0:02:50.8]}
8... e5 {[%clk 0:02:26.4]} 9. Be3 {[%clk 0:02:49.5]} 9... O-O {[%clk 0:02:25.3]}
10. Nd2 {[%clk 0:02:48.5]} 10... f5 {[%clk 0:02:24.2]} 11. Nb3 {[%clk
0:02:47.6]} 11... c4 {[%clk 0:01:40.8]} 12. dxc4 {[%clk 0:02:44.8]} 12... d4
{[%clk 0:01:38.1]} 13. Bf2 {[%clk 0:02:35.4]} 13... c5 {[%clk 0:00:58.3]} 14.
exf5 {[%clk 0:02:29.7]} 14... Nxf5 {[%clk 0:00:54]} 15. Ng3 {[%clk 0:02:23.9]}
15... Bb7 {[%clk 0:00:49.8]} 16. Nd2 {[%clk 0:02:22.6]} 16... Nh4 {[%clk
0:00:45.1]} 17. Nge4 {[%clk 0:02:20.5]} 17... Be7 {[%clk 0:00:43.1]} 18. Bxh4
{[%clk 0:02:19.7]} 18... Bxh4 {[%clk 0:00:42.7]} 19. Qe2 {[%clk 0:02:20.1]}
19... Qb6 {[%clk 0:00:39.5]} 20. b3 {[%clk 0:02:16.5]} 20... Rae8 {[%clk
0:00:37.2]} 21. Qd3 {[%clk 0:02:16]} 21... Re6 {[%clk 0:00:35.2]} 22. a3 {[%clk
0:02:12.4]} 22... a5 {[%clk 0:00:32.4]} 23. Kh1 {[%clk 0:02:11.7]} 23... Rh6
{[%clk 0:00:30.8]} 24. g3 {[%clk 0:02:07.2]} 24... Be7 {[%clk 0:00:24.4]} 25.
Rf2 {[%clk 0:02:02.7]} 25... Qg6 {[%clk 0:00:20.1]} 26. Kg1 {[%clk 0:02:01.5]}
26... Qh5 {[%clk 0:00:19.9]} 27. Raf1 {[%clk 0:01:59.2]} 27... Rg6 {[%clk
0:00:19.7]} 28. Re1 {[%clk 0:01:55.3]} 28... Qh3 {[%clk 0:00:19.5]} 29. Rg2
{[%clk 0:01:52.8]} 29... Qh5 {[%clk 0:00:14.6]} 30. Ree2 {[%clk 0:01:48.6]}
30... Qf5 {[%clk 0:00:13.7]} 31. h4 {[%clk 0:01:46.4]} 31... Re6 {[%clk
0:00:08.4]} 32. Kh2 {[%clk 0:01:39.8]} 32... h6 {[%clk 0:00:08.6]} 33. Nf2
{[%clk 0:01:38.1]} 33... Qxd3 {[%clk 0:00:07.5]} 34. Nxd3 {[%clk 0:01:37.8]}
34... Bxf3 {[%clk 0:00:07.6]} 35. Nxf3 {[%clk 0:01:37.7]} 35... Rxf3 {[%clk
0:00:07.8]} 36. Rxe5 {[%clk 0:01:27.4]} 36... Rxe5 {[%clk 0:00:07.1]} 37. Nxe5
{[%clk 0:01:28.3]} 37... Rc3 {[%clk 0:00:05.2]} 38. a4 {[%clk 0:01:25.1]} 38...
Bd6 {[%clk 0:00:04.5]} 39. Nd3 {[%clk 0:01:24.8]} 39... Kf7 {[%clk 0:00:03.9]}
40. Re2 {[%clk 0:01:22.5]} 40... Kf6 {[%clk 0:00:03.7]} 41. Kg2 {[%clk
0:01:22.3]} 41... Kf5 {[%clk 0:00:03.7]} 42. Kf3 {[%clk 0:01:21.3]} 42... g5
{[%clk 0:00:03]} 43. g4+ {[%clk 0:01:21.1]} 43... Kf6 {[%clk 0:00:02.8]} 44. h5
{[%clk 0:01:21.5]} 44... Bf4 {[%clk 0:00:02.2]} 45. Ke4 {[%clk 0:01:20.4]} 45...
Be3 {[%clk 0:00:01.8]} 46. Kd5 {[%clk 0:01:20.8]} 1-0

[Event "Early-Titled-Tuesday-Blitz-September-12-2023"]
[Site "Chess.com"]
[Date "2023.09.12"]
[Round "1"]
[White "Keithonsky"]
[Black "valemava"]
[Result "1-0"]
[WhiteElo "2618"]
[BlackElo "2303"]
[TimeControl "180+1"]
[EndTime "8:06:32 PDT"]
[Termination "Keithonsky won by checkmate"]

1. d4 {[%clk 0:03:00.9]} 1... c6 {[%clk 0:02:55.7]} 2. Nc3 {[%clk 0:03:01]} 2...
b5 {[%clk 0:02:55.4]} 3. a3 {[%clk 0:03:00.3]} 3... d5 {[%clk 0:02:54.7]} 4. Bf4
{[%clk 0:02:59.9]} 4... Bf5 {[%clk 0:02:54]} 5. e3 {[%clk 0:02:59.5]} 5... e6
{[%clk 0:02:54.3]} 6. g3 {[%clk 0:02:57.9]} 6... h6 {[%clk 0:02:52.3]} 7. g4
{[%clk 0:02:58.1]} 7... Bg6 {[%clk 0:02:51.2]} 8. h4 {[%clk 0:02:58.8]} 8... h5
{[%clk 0:02:50]} 9. Be2 {[%clk 0:02:56.7]} 9... Nf6 {[%clk 0:02:45.5]} 10. Bg5
{[%clk 0:02:55.7]} 10... Be7 {[%clk 0:02:43.8]} 11. Bxf6 {[%clk 0:02:55.5]}
11... Bxf6 {[%clk 0:02:43.4]} 12. gxh5 {[%clk 0:02:54.1]} 12... Bh7 {[%clk
0:02:39.2]} 13. Nf3 {[%clk 0:02:51.5]} 13... Nd7 {[%clk 0:02:38.2]} 14. Bd3
{[%clk 0:02:48.4]} 14... Bxd3 {[%clk 0:02:32.7]} 15. cxd3 {[%clk 0:02:48.7]}
15... Rxh5 {[%clk 0:02:31.8]} 16. Ne5 {[%clk 0:02:48.5]} 16... g6 {[%clk
0:02:20.9]} 17. Nxc6 {[%clk 0:02:46]} 17... Qb6 {[%clk 0:02:20.9]} 18. Nb4
{[%clk 0:02:40]} 18... a5 {[%clk 0:02:18.1]} 19. Nc2 {[%clk 0:02:38.7]} 19...
Ke7 {[%clk 0:02:15.5]} 20. b4 {[%clk 0:02:32.3]} 20... a4 {[%clk 0:02:14.4]} 21.
Rc1 {[%clk 0:02:31.2]} 21... Rah8 {[%clk 0:02:13.5]} 22. Qf3 {[%clk 0:02:28.7]}
22... Rxh4 {[%clk 0:02:10.8]} 23. Rxh4 {[%clk 0:02:28.7]} 23... Rxh4 {[%clk
0:02:11.7]} 24. Qxd5 {[%clk 0:02:27]} 24... exd5 {[%clk 0:02:09.1]} 25. Nxd5+
{[%clk 0:02:26.8]} 25... Kd6 {[%clk 0:02:09]} 26. Nxb6 {[%clk 0:02:27.4]} 26...
Nxb6 {[%clk 0:02:07.6]} 27. Ke2 {[%clk 0:02:25.7]} 27... Nd5 {[%clk 0:02:05.3]}
28. e4 {[%clk 0:02:25.5]} 28... Nc3+ {[%clk 0:01:58.3]} 29. Kd2 {[%clk
0:02:23.4]} 29... Bg5+ {[%clk 0:01:58]} 30. Ne3 {[%clk 0:02:24.1]} 30... Na2
{[%clk 0:01:15.8]} 31. e5+ {[%clk 0:02:19.8]} 31... Kd7 {[%clk 0:01:14]} 32. Rc2
{[%clk 0:02:17]} 32... Rh2 {[%clk 0:01:11.6]} 33. Ke2 {[%clk 0:02:14.4]} 33...
Nxb4 {[%clk 0:01:04.5]} 34. axb4 {[%clk 0:02:13.6]} 34... a3 {[%clk 0:01:04.6]}
35. Ra2 {[%clk 0:02:12]} 35... Be7 {[%clk 0:01:00.2]} 36. Nd5 {[%clk 0:02:08.6]}
36... Bh4 {[%clk 0:00:57.5]} 37. Kf3 {[%clk 0:02:04.3]} 37... Bxf2 {[%clk
0:00:53.1]} 38. Nf6+ {[%clk 0:01:38.8]} 38... Kc6 {[%clk 0:00:46.2]} 39. d5+
{[%clk 0:01:38.7]} 39... Kb6 {[%clk 0:00:45.7]} 40. Ng4 {[%clk 0:01:39]} 40...
Rh3+ {[%clk 0:00:38.8]} 41. Kxf2 {[%clk 0:01:39.1]} 41... Rxd3 {[%clk
0:00:38.9]} 42. e6 {[%clk 0:01:37.5]} 42... Rxd5 {[%clk 0:00:37]} 43. e7 {[%clk
0:01:36.7]} 43... Rf5+ {[%clk 0:00:32.3]} 44. Ke3 {[%clk 0:01:36.9]} 44... Rf1
{[%clk 0:00:30.3]} 45. e8=Q {[%clk 0:01:35.2]} 45... Re1+ {[%clk 0:00:30.3]} 46.
Re2 {[%clk 0:01:36]} 46... Rxe2+ {[%clk 0:00:30.7]} 47. Kxe2 {[%clk 0:01:36.9]}
47... a2 {[%clk 0:00:31.4]} 48. Qb8+ {[%clk 0:01:36.5]} 48... Kc6 {[%clk
0:00:31.5]} 49. Qa8+ {[%clk 0:01:36.3]} 49... Kd6 {[%clk 0:00:31.1]} 50. Qxa2
{[%clk 0:01:37.2]} 50... f5 {[%clk 0:00:30.7]} 51. Ne3 {[%clk 0:01:36.7]} 51...
f4 {[%clk 0:00:30.4]} 52. Qd5+ {[%clk 0:01:37.6]} 52... Ke7 {[%clk 0:00:30.1]}
53. Ng4 {[%clk 0:01:38.4]} 53... g5 {[%clk 0:00:29.7]} 54. Kf3 {[%clk
0:01:39.3]} 54... Kf8 {[%clk 0:00:26.8]} 55. Qxg5 {[%clk 0:01:39.6]} 55... Kf7
{[%clk 0:00:25.4]} 56. Qxb5 {[%clk 0:01:40.5]} 56... Ke6 {[%clk 0:00:26.2]} 57.
Qe5+ {[%clk 0:01:40.8]} 57... Kf7 {[%clk 0:00:26.1]} 58. Qf6+ {[%clk 0:01:41.1]}
58... Ke8 {[%clk 0:00:25.4]} 59. Qg7 {[%clk 0:01:41.4]} 59... Kd8 {[%clk
0:00:25.1]} 60. Ne5 {[%clk 0:01:42.3]} 60... Kc8 {[%clk 0:00:26]} 61. Qd7+
{[%clk 0:01:41.6]} 61... Kb8 {[%clk 0:00:26.9]} 62. Nc6+ {[%clk 0:01:42.4]}
62... Ka8 {[%clk 0:00:27.8]} 63. Qc8# {[%clk 0:01:43.2]} 1-0

[Event "Early-Titled-Tuesday-Blitz-September-12-2023"]
[Site "Chess.com"]
[Date "2023.09.12"]
[Round "1"]
[White "santosalberto1987"]
[Black "MBA_CHESS_2021"]
[Result "1-0"]
[WhiteElo "2550"]
[BlackElo "2099"]
[TimeControl "180+1"]
[EndTime "8:06:32 PDT"]
[Termination "santosalberto1987 won by checkmate"]

1. e4 {[%clk 0:03:00.9]} 1... c5 {[%clk 0:02:58.7]} 2. Nf3 {[%clk 0:03:00.8]}
2... Nc6 {[%clk 0:02:57.9]} 3. Nc3 {[%clk 0:03:00.6]} 3... e5 {[%clk 0:02:56.4]}
4. Bc4 {[%clk 0:03:00.2]} 4... d6 {[%clk 0:02:55.6]} 5. d3 {[%clk 0:03:00.4]}
5... h6 {[%clk 0:02:53.6]} 6. Nd2 {[%clk 0:02:59.9]} 6... a6 {[%clk 0:02:44.6]}
7. a4 {[%clk 0:02:58.3]} 7... Be7 {[%clk 0:02:36.6]} 8. Nf1 {[%clk 0:02:57.6]}
8... Bg5 {[%clk 0:02:34.5]} 9. Ne3 {[%clk 0:02:55.3]} 9... Be6 {[%clk 0:02:27]}
10. Ned5 {[%clk 0:02:54.3]} 10... Nge7 {[%clk 0:02:20.7]} 11. O-O {[%clk
0:02:52.6]} 11... Bxd5 {[%clk 0:02:14.8]} 12. Nxd5 {[%clk 0:02:52.2]} 12... Bxc1
{[%clk 0:02:03.5]} 13. Rxc1 {[%clk 0:02:49.3]} 13... Nxd5 {[%clk 0:01:57.4]} 14.
Bxd5 {[%clk 0:02:49.1]} 14... g5 {[%clk 0:01:53.6]} 15. g3 {[%clk 0:02:38.7]}
15... Qd7 {[%clk 0:01:51.9]} 16. f4 {[%clk 0:02:35.9]} 16... gxf4 {[%clk
0:01:38.7]} 17. gxf4 {[%clk 0:02:36.8]} 17... O-O-O {[%clk 0:01:33.1]} 18. Qh5
{[%clk 0:02:29.5]} 18... f6 {[%clk 0:01:13.8]} 19. Kh1 {[%clk 0:02:17.4]} 19...
Ne7 {[%clk 0:01:08]} 20. Bb3 {[%clk 0:02:11.6]} 20... Kb8 {[%clk 0:01:03.3]} 21.
fxe5 {[%clk 0:02:10.5]} 21... fxe5 {[%clk 0:01:03.2]} 22. Rf7 {[%clk 0:02:09.7]}
22... Rdf8 {[%clk 0:01:03.3]} 23. Rcf1 {[%clk 0:02:08.7]} 23... Qe8 {[%clk
0:00:58.1]} 24. Rxf8 {[%clk 0:01:56.2]} 24... Rxf8 {[%clk 0:00:56]} 25. Qxe8+
{[%clk 0:01:56.2]} 25... Rxe8 {[%clk 0:00:56.3]} 26. Rf6 {[%clk 0:01:56.6]}
26... Kc7 {[%clk 0:00:51.8]} 27. Rxh6 {[%clk 0:01:56.1]} 27... b5 {[%clk
0:00:50.9]} 28. Rh7 {[%clk 0:01:50.1]} 28... Kb6 {[%clk 0:00:46.3]} 29. h4
{[%clk 0:01:43.9]} 29... Ng6 {[%clk 0:00:45.2]} 30. Bf7 {[%clk 0:01:43.3]} 30...
Nf8 {[%clk 0:00:43.1]} 31. Bxe8 {[%clk 0:01:39.5]} 31... Nxh7 {[%clk 0:00:43.1]}
32. axb5 {[%clk 0:01:35.1]} 32... axb5 {[%clk 0:00:42.5]} 33. h5 {[%clk
0:01:35.2]} 33... Nf6 {[%clk 0:00:37.2]} 34. h6 {[%clk 0:01:34.6]} 34... d5
{[%clk 0:00:27.7]} 35. Bg6 {[%clk 0:01:32.3]} 35... d4 {[%clk 0:00:26.7]} 36. h7
{[%clk 0:01:32.1]} 36... Nxh7 {[%clk 0:00:26.2]} 37. Bxh7 {[%clk 0:01:33]} 37...
c4 {[%clk 0:00:25.9]} 38. Kg2 {[%clk 0:01:32.1]} 38... b4 {[%clk 0:00:26.2]} 39.
dxc4 {[%clk 0:01:29.1]} 39... Kc5 {[%clk 0:00:18.4]} 40. b3 {[%clk 0:01:23.7]}
40... d3 {[%clk 0:00:18.1]} 41. cxd3 {[%clk 0:01:24.3]} 41... Kd4 {[%clk
0:00:18.7]} 42. Bg8 {[%clk 0:01:20.9]} 42... Kc3 {[%clk 0:00:18.3]} 43. c5
{[%clk 0:01:20.7]} 43... Kxd3 {[%clk 0:00:18.7]} 44. c6 {[%clk 0:01:20.9]} 44...
Kxe4 {[%clk 0:00:19.4]} 45. c7 {[%clk 0:01:21.1]} 45... Kd4 {[%clk 0:00:20.1]}
46. c8=Q {[%clk 0:01:21]} 46... e4 {[%clk 0:00:20.9]} 47. Qc4+ {[%clk
0:01:19.7]} 47... Ke3 {[%clk 0:00:21]} 48. Bh7 {[%clk 0:01:17.2]} 48... Kd2
{[%clk 0:00:20.7]} 49. Qxe4 {[%clk 0:01:16.7]} 49... Kd1 {[%clk 0:00:19.8]} 50.
Kf2 {[%clk 0:01:14.3]} 50... Kd2 {[%clk 0:00:19.5]} 51. Qc2# {[%clk 0:01:13]}
1-0